{"text_format":"3","workbook":"xlsx","n_sheets":1,"sheets":["Food and Non Food Specification"],"not_rendered":{"defined_names":2},"read":"whole","date_system":"1900"}

{"sheet":"Food and Non Food Specification","index":0,"n_rows":721,"n_cols":10,"rows_kept":721}
[null,"RCS Work CopyFood and Non Food Bid   School Year 2018/2019"]
[null,null,"Preferred Pack Size",null,"Proposed Brand and Item Number","Case Price","Proposed Pack Size","Vendor Id Number","Projected Usage","Extended Cost"]
[null,"EXAMPLE---Vendor writes in these columns ",null,"Example only/or approved equal",{"$nulls":5},"Usage x case cost"]
[null,"BEVERAGES"]
[null,"100% No sugar added 6 oz or larger juice in Asceptic Package.  Credits as 3/4 cup fruit.","32/6.75 oz","Libby Juicy Juice"]
[null,"Fruit Punch",null,795647,{"$nulls":4},325,{"$f":"I6*F6","v":0}]
[null,"Grape  ",null,52479,{"$nulls":4},175,0]
[null,"Apple",null,15794,{"$nulls":4},175,0]
[null,"Berry",null,87776,{"$nulls":4},120,0]
[null,"Orange Tangerine",null,84125,{"$nulls":4},75,0]
[null,"100% Frozen Juice, No Sugar Added, credits as 1/2 cup juice. Plastic cup, peel off top or wax paper carton.","70/4 oz","Ardmore ",{"$nulls":5},0]
[null,"Orange",null,42297,{"$nulls":4},350,0]
[null,"Apple",null,42298,{"$nulls":4},2000,0]
[null,"Grape",null,42301,{"$nulls":4},425,0]
[null,"Fruitables Plus, 100% Juice, Counts as 1/2 cup vegetable.","40/1.25 ml","Apple & Eve",{"$nulls":5},0]
[null,"Tropical Twist ",null,"24023CBF",{"$nulls":4},75,0]
[null,"Power Punch",null,"24024TPF",{"$nulls":4},75,0]
[null,"Low Calorie Electrolyte Beverage, <50 calories per container   ","24/12 oz","Gatorade G2 ",{"$nulls":5},0]
[null,"Glacier Freeze",null,12007,{"$nulls":4},200,0]
[null,"Grape",null,12203,{"$nulls":4},50,0]
[null,"Orange",null,12204,{"$nulls":4},40,0]
[null,"Mixed Berry",null,13297,{"$nulls":4},25,0]
[null,"Fruit Punch",null,12002,{"$nulls":4},25,0]
[null,"Water, Spring, 16.9 oz plastic bottles   ","24/16.9 oz","Crystal 500665 ",{"$nulls":4},250,0]
[null,"Water, Spring, - 10 oz. plastic bottles","24/10 oz","Crystal Geyser or Equal",{"$nulls":4},25,0]
[null,"Water, Spring, -20 oz. plastic bottles","24/20 oz","Crystal Geyser or Equal",{"$nulls":4},1000,0]
[null,"Water, Nutrient Infused, 16.9 oz Plastic Bottle, No Calorie, Wave as example.","24/16.9 oz","Wave",{"$nulls":5},0]
[null,"Strawberry",null,"00085",{"$nulls":4},70,0]
[null,"Grape",null,"00086",{"$nulls":4},100,0]
[null,"Orange Mango",null,"00087",{"$nulls":4},36,0]
[null,"Carbonated Mountain Spring Water, Caffeine Free, Zero Calorie","12/17 oz","Sparkling Ice     Fruit 2 O"]
[null,"Black Raspberry",null,24573,{"$nulls":4},40,0]
[null,"Orange Mango",null,24574,{"$nulls":4},20,0]
[null,"Cherry Limeage",null,95086,{"$nulls":4},50,0]
[null,"Lemonade",null,94035,{"$nulls":4},50,0]
[null,"Kiwi Strawberry",null,24575,{"$nulls":4},40,0]
[null,"Tea, decaffeinated, low cal, fully sweetened","25/12 oz","Milo's M59   51600",{"$nulls":4},250,0]
[null,"Lemonade, low cal, fully sweetened ","25/12 oz","Milo's M59   51700",{"$nulls":4},15,0]
[null,"Mix, Drink Peach Tea on the Go","120/.09 oz","Crystal Light 00797",{"$nulls":4},5,0]
[null,"Mix, Drink Raspberry Ice on the Go","120/.08 oz","Crystal Light 00798",{"$nulls":4},2,0]
[null,"Mix, Drink Lemonade on the Go","120/.17 oz","Crystal Light 00796",{"$nulls":4},15,0]
[null,"Mix, Drink Fruit Punch on the Go","120/.07 oz","Crystal Light 00006",{"$nulls":4},5,0]
[null,"Soy Milk, Aseptic Packaging, Vanilla","18/8oz","Silk",{"$nulls":4},5,0]
[null,"Tea Bags-1 oz equals 1 gallon","96/1 oz","RPD 101021",{"$nulls":4},25,0]
[null,"CANNED FRUITS",{"$nulls":7},0]
[null,"Apples, sliced, water pack, Grade B or better","6/#10",{"$nulls":5},125,0]
[null,"Applesauce, natural juices, US Grade A (Fancy), unsweetened ","6/#10",{"$nulls":5},75,0]
[null,"Cranberry Sauce, Jellied, Resealable Container   ","6/#10","Oceanspray #01401 or equal",{"$nulls":4},5,{"$f":"I49*F48","v":0}]
[null,"Fruit Cocktail, US Grade B, (choice)                                                       in light syrup, peaches first ingredient","6/#10",{"$nulls":5},50,0]
[null,"Mandarin Orange, Whole Sections, Grade A Fancy, packed in light syrup.","6/#10",{"$nulls":5},400,0]
[null,"Peach Slices, Yellow Cling, US Grade B (choice),                                    in light syrup  ","6/#10",{"$nulls":5},50,0]
[null,"Peach Halves, Yellow Cling, US Grade B (choice),                                    in light syrup, 35-40 halves per can","6/#10",{"$nulls":5},10,{"$f":"I53*F52","v":0}]
[null,"Pear, Halves, Bartlett, US Grade B (choice),  in light syrup,        35-40 halves per can","6/#10",{"$nulls":5},25,0]
[null,"Pineapple, Tidbits, US Grade B (choice), own juice with no sugar added ","6/#10",{"$nulls":5},150,{"$f":"I54*F54","v":0}]
[null,"Pineapple, chunks, US Grade B (choice), own juice with no sugar added ","6/#10",{"$nulls":5},50,0]
[null,"Tropical Fruit, in light syrup","6/#10","Dole 4820072143",{"$nulls":4},100,0]
[{"$nulls":9},0]
[null,"FROZEN FRUIT/Juice Concentrate",{"$nulls":7},0]
[null,"Mango Chunks, IQF, NSA","30#",{"$nulls":5},15,0]
[null,"Frozen Fruit Slushies, 100% juice, no added sweetner, no red dyes, 4.4 oz equals 1/2 cup fruit juice","84/4.4 oz","Ridegefield Sidekicks",{"$nulls":5},0]
[null,"Strawberry Mango",null,2015,{"$nulls":4},15,0]
[null,"Strawberry Kiwi",null,2014,{"$nulls":4},20,0]
[null,"Raspberry Lemon",null,2009,{"$nulls":4},15,0]
[null,"Cherry Smooth",null,2021,{"$nulls":4},15,0]
[null,"Sunbelievable",null,2020,{"$nulls":4},50,0]
[null,"Sour Cherry Lemon",null,2016,{"$nulls":4},15,{"$f":"I66*F66","v":0}]
[null,"Strawberries, sliced, sweetened (4 parts fruit + 1 part sugar)","30#","Simplot",{"$nulls":4},5,0]
[null,"FROZEN VEGETABLES",{"$nulls":7},0]
[null,"Broccoli, Floret, Fancy, IQF","12/2#",{"$nulls":5},25,0]
[null,"Carrots, Whole Baby, Grade A, IQF","20#",{"$nulls":5},10,0]
[null,"Carrots, Krinkle Cut, Grade A, IQF","12/2#",{"$nulls":5},10,0]
[null,"Cut Corn, Whole Kernel Yellow, Grade A, Frozen","20#",{"$nulls":5},10,0]
[null,"Egg Roll, Vegetable 3.1 oz WGR, pre cooked, filled with carrots, celery, cabbage and spices. 1 = 1wgr and 1/2 cup vegetable ","130/3.1 oz","Minh 66048",{"$nulls":4},100,0]
[null,"Peas, Green, Grade A frozen","20#",{"$nulls":5},20,0]
[null,"Vegetable Mix, Oriental Blend IQF, Grade A Fancy, French Style Green Beans <40%, Broccoli <35%, Onion and Red Pepper and Mushrooms at least 25% total,  Frozen--","12/2 #","LI-GF 3710015311",{"$nulls":4},20,0]
[null,"Vegetable Mix, 5 way with <30% diced carrots, <30% green peas, 20% corn, Green and Lima Beans 20% total  Grade A, IQF","20#",{"$nulls":5},40,0]
[null,"Vegetables, Grade A, IQF Dutch Style IQF (California) Blend, Broccoli 40%, Cauliflower 30%, Sliced Carrots 30%.","20#",{"$nulls":5},100,0]
[null,"Lima Beans, Baby, Frz. Grade A Fancy","20#",{"$nulls":5},5,0]
[null,"Turnip Greens, Chopped, Frz. ","12/3#",{"$nulls":5},25,0]
[null,"Peppers, Diced, Frz., IQF, Grade A, target size 1/4\"","6/2#",{"$nulls":5},10,0]
[null,"Onions, Diced, Frz., IQF, Grade A, target size 3/8\"","12/2#",{"$nulls":5},10,0]
[null,"Potato, Red, Rosemary Flame Roasted Redskins","6/2.5#","Simplot 7117975767",{"$nulls":4},50,0]
[null,"Potato, Sweet, Entrée Cut, U.S. Grade A, NTF, Gluten Free","6/2.5 LB","Simplot 7117901645",{"$nulls":4},75,0]
[null,"Potato, Sweet Thing, Cross Cut Potato Fry ","5/3 lb","LambWeston L0090",{"$nulls":4},125,0]
[null,"Potato, Hashbrown Tater Triangle, NTF, 240 ct","6/ 5 LB","Simplot 7117928022",{"$nulls":4},45,0]
[null,"Potato, French Fry Batter Bite Savory Chunk","6/6 lb","Simplot 7117947727",{"$nulls":4},350,0]
[null,"Potato, French Fry Wedge, Savory, 10-Cut, battered,seasoned","6/5 lb","Simplot 7117947801",{"$nulls":4},300,0]
[null,"Potato, French Fry Oven Bakeable, 1/2\" Crinkle Cut ","6/5 Llb","Simplot 7117922122",{"$nulls":4},125,0]
[null,"Potato, French Fry, Shoestring, Extra Long Fancy, Deep Fry","6/6 lb","Simplot 7117946420",{"$nulls":4},25,0]
[null,"Potato, Mini Baker Roasted, Frozen, Baby Bakers","6 /2.5 lb","Simplot 7117900048",{"$nulls":4},75,0]
[null,"Potato, French Fry Straight Cut Conquest 3/8\" coated","6/5 lb","Simplot 7117947108",{"$nulls":4},25,0]
[null,"Potato, French Fry Shoestring Conquest coated","6/4.5 lb","Simplot 7117947998",{"$nulls":4},20,0]
[null,"Potato, Savory Thin No Trans Fat","6/4.5#","Simplot 7117947401",{"$nulls":4},10,0]
[null,"Potatoes, Grade A, Tater Tots, ready to fry or bake-no trans fat","6/5#","RP Tasty Taters",{"$nulls":4},200,{"$f":"I94*F94","v":0}]
[]
[null,"CANNED VEGETABLES",{"$nulls":7},0]
[null,"Beans, Green, Blue Lake US Grade A Fancy,   Cut #4 sieve, Midwest grown yield:  45.31 1/4 cups, Salt in brine to target 1.00%","6/#10",{"$nulls":5},10,0]
[null,"Beans, Green Flat, Italian Cut, Low Sodium preffered,  US Grade A Fancy, ","6/#10",{"$nulls":5},10,0]
[null,"Beans, Pinto, Fancy, Prepared from dried pinto beans, water and salt.  Salt in brine to target 1.00%","6/#10",{"$nulls":5},5,0]
[null,"Beans, Refried Vegetarian Must have good color and quality","6/#10",{"$nulls":5},50,0]
[null,"Pork and Beans, Fancy, US Grade A ","6/#10",{"$nulls":5},100,0]
[null,"Beans, Mexican Style chili, Grade A","6/#10",{"$nulls":5},10,0]
[null,"Beans, Garbanzo/Chick Peas","6/ #10",{"$nulls":5},5,0]
[null,"Beans, Great Northern, Low Sodium preffered, Grade A Fancy ","6/#10",{"$nulls":5},5,0]
[null,"Beans,Whole Black,  Low Sodium preffered, Grade A Fancy","6/#10",{"$nulls":5},20,0]
[null,"Beans, Kidney Dark Red, Low Sodium preffered,  Grade A Fancy","6/#10",{"$nulls":5},5,0]
[null,"Carrots, Sliced Medium, Grade A Fancy","6/#10",{"$nulls":5},25,0]
[null,"Corn, Whole Kernel,  Low Sodium preffered, Grade A Fancy","6/#10",{"$nulls":5},10,0]
[null,"Peas, Green,  Low Sodium preffered, Grade A Fancy, 3 seive","6/#10",{"$nulls":5},100,0]
[null,"Peas, Black Eyed,   Low Sodium preffered,  Grade A Fancy","6/#10",{"$nulls":5},25,0]
[null,"Potatoes, Diced White, Grade A Fancy","6/#10",{"$nulls":5},10,0]
[null,"Potatoes, Sliced White, Grade A Fancy","6/#10",{"$nulls":5},5,{"$f":"I113*F112","v":0}]
[null,"Potatoes, whole 90/110 count, Fancy","6/#10        ",{"$nulls":5},25,{"$f":"I115*F113","v":0}]
[null,"Salsa, Medium, thick and chunky w/ 1/4 inch pieces of tomato","4/1 gal","LaVictoria 07804",{"$nulls":4},15,0]
[null,"Salsa, Mild, thick and chunky w/ 1/4 inch pieces of tomato","4/1 gal","LaVictoria 07808",{"$nulls":4},60,{"$f":"I118*F115","v":0}]
[null,"Chili Sauce, Fancy, Grade A","6/#10","Heinz 78000060",{"$nulls":4},2,0]
[null,"Sloppy Joe Sauce, Manwich","4/#10","Hunts 2700044181",{"$nulls":4},20,0]
[null,"Spaghetti Sauce, Fancy, Grade A quality","6/#10        ","Hunts 42201",{"$nulls":4},175,0]
[null,"Spaghetti Sauce, Fancy,  Low Sodium, Grade A quality","6/#10        ","RedGold RPKMA9E",{"$nulls":4},25,0]
[null,"Sweet Potatoes, cut in light syrup packed, US Grade A","6/#10        ",{"$nulls":5},25,{"$f":"I120*F120","v":0}]
[null,"Tomatoes, Diced with Green Chiles and savory spices","12/28 oz","Rotel",{"$nulls":4},15,0]
[null,"Tomatoes, Concentrated, Crushed","6#10",{"$nulls":5},15,0]
[null,"Tomato, Ketchup, US Grade A, dry wgt. 115 oz.   Enamel lined can","6/#10",{"$nulls":5},10,0]
[null,"Tomato paste, Fancy, 26% natural tomato soluble solids","6/#10",{"$nulls":5},3,0]
[null,"Tomato, Sauce Fancy      ","6/#10",{"$nulls":5},60,0]
[null,"Vegetables, Mixed 7 Vegetables, US Grade A Fancy, ","6/#10",{"$nulls":5},20,0]
[null,"Marinara Sauce, Boiled Red Sauce Chunky Style","6/ #10","Full Red  01704",{"$nulls":4},25,0]
[null,"Soup, Cream of Celery","12/50 oz","Campbell 01166",{"$nulls":4},5,0]
[null,"Soup, Cream of Mushroom","12/50 oz","Campbell 01266",{"$nulls":4},5,0]
[null,"Soup, Cream of Chicken","12/50 oz","Campbell 01036",{"$nulls":4},35,0]
[null,"Soup, Tomato, Healthy Request Campbells","12/50 oz","Campbell 04145",{"$nulls":4},10,0]
[null," Other Fruits and Vegetables",{"$nulls":7},0]
[null,"Cranberries, dried, single serve flavor infused, strawberry 1.16 oz equals 1/2 cup fruit","200/1.16 oz","Ocean Spray 23445",{"$nulls":4},20,0]
[null,"Cranberries, dried, single serve flavor infused, orange 1.16 oz equals 1/2 cup fruit","200/1.16 oz","Ocean Spray   22545",{"$nulls":4},20,{"$f":"I134*F134","v":0}]
[null,"Raisins, Thompson, seedless dried, boxed 1.5 oz equals 1/2 cup fruit equivalent","144/1.5oz","ZZ 610606",{"$nulls":4},40,{"$f":"I135*F135","v":0}]
[null,"Cranberries, choice, sweetened, dried, bulk pack","2/48 oz","Ocean Spray 21992",{"$nulls":4},5,0]
[null,"Cherries, Maraschino Halves, Grade B Standard ","6/ 1/2 gal",{"$nulls":5},5,{"$f":"I137*F137","v":0}]
[null,"Lemon juice, from concentrate  Shelf Stable","4/1 gal",{"$nulls":5},2,0]
[null,"Lemon juice, 4 gram packages,  Shelf Stable","200/4 gm",{"$nulls":5},2,0]
[null,"Marinara Sauce, portion cups, 2.5 oz cup equals 1/2 cup red orange vegetable","84/2.5 oz","Red Gold 82207",{"$nulls":4},30,0]
[null,"Salsa, dipping cup, 3 oz equal 1/2 cup red orange vegetable","84/3 oz","Red Gold 7294011139",{"$nulls":4},30,{"$f":"I141*F141","v":0}]
[null,"Peppers, Sliced Jalapeno","6/#10","Del Sol Nacho Sliced 4243400115",{"$nulls":4},5,0]
[null,"Peppers, Banana, 3/8\" mild","4/1 gal","Roland 45778",{"$nulls":4},5,0]
[null,"Pepper, Green Chilie, Diced","12/27 oz",{"$nulls":5},5,0]
[null,"Pepper, Pimento, diced, US Grade A                                                         ","24/28 oz",{"$nulls":5},5,{"$f":"I145*F145","v":0}]
[null,"Olives, Green, Salad olives with minced pimento","4/1 gal",{"$nulls":5},4,0]
[null,"Olives, Ripe, sliced, Spain","6/#10","Orefresco 4820055609",{"$nulls":4},2,0]
[null,"Pickles, dill slices 1/8\" crinkle, 3100 to 3300 ct","1/5 gal",{"$nulls":5},15,0]
[null,"Pickles, dill slices 1/8\" crinkle, 725 to 775 ct","4/1 gal",{"$nulls":5},65,0]
[null,"Pickles, Kosher Dill Spears, refrigerated, 275 to 325/pail","1/5 gal",{"$nulls":5},35,0]
[null,"Pickles, Kosher Dill, Whole, refrigerated, 80 to 110/pail","1/5 gal",{"$nulls":5},5,0]
[null,"Pickle, Sweet Relish, 25% brix or above, ","4/ 1 gal",{"$nulls":5},5,0]
[null,"Potato, Instant with Milk, Vitamin C","6/#10","Basic American/ Whipp 10215",{"$nulls":4},100,0]
[null,"Potatoes, Pearls Excel","12/28 oz","Basic American 76468",{"$nulls":4},50,0]
[null,"Frozen and Refrigerated Meat/Meat Alternates",{"$nulls":7},0]
[{"$nulls":9},0]
[null,"Cheese, sticks, wrapped 1oz mild cheddar cheese=1 MA","168/1oz","Land O Lakes 044879",{"$nulls":4},25,0]
[null,"Cheese, sticks, wrapped 1oz light mozzarella=1 MA","168/1oz","Am Heritage 038275",{"$nulls":4},200,0]
[null,"Cheese, sliced and easy peel, American Yellow Processed Cheese 120/5#, 1 slice=.5 MA","4/5#","Schreiber ",{"$nulls":4},100,0]
[null,"Cheese, American, Loaf","6/5#","Schreiber ",{"$nulls":4},15,0]
[null,"Cheese, feather shredded mild cheddar cheese","4/5#",{"$nulls":5},30,0]
[null,"Cheese, mozzarella loaf, low moisture, part skim ","#","Orefresco ",{"$nulls":4},100,0]
[null,"Cheese, mozzarella, shredded low moisture part skim","4/5#",{"$nulls":5},50,0]
[null,"Cheese, parmesan, grated","4/5#","Orefresco 78765",{"$nulls":4},5,{"$f":"I164*F164","v":0}]
[null,"Cheese, Pepper Jack  Sliced","4/5#",{"$nulls":5},15,0]
[null,"Cheese, Cream, individual cups","100/ .75 oz","Kraft 61089",{"$nulls":4},5,0]
[null,"Eggs, whole liquid, frozen, pasteurized, boil in bag","6/5#","Rembrandt Foods 3321031600",{"$nulls":4},50,{"$f":"I167*F167","v":0}]
[null,"Egg Patty, scrambled, frozen meets or exceeds 1.0 MA per patty","300/1.25"," Michael Foods 46025-85017",{"$nulls":4},75,0]
[null,"Peanut Butter Graham Snackers, Peanut Butter and Grape Jelly on Whole Grain Graham Wafers, Meal Requirement = 1 oz. MA, 1 serving WGR equivalent","72/2.8 oz","Advance Pierre A1290",{"$nulls":4},25,0]
[null,"Peanut Butter Sandwich and Grape Jelly on Whole Grain Bread, no crust, IW, 5.3 oz.  To meet 2 MA and 2 WGR equivalents.","72/2.6 oz","Smuckers 21027",{"$nulls":4},50,0]
[null,"Peanut Butter Sandwich and Grape Jelly on Whole Grain Bread, no crust, IW, 2.6 oz.  To meet 1 MA and 1 WGR equivalent ","72/2.6 oz","Smuckers 6960",{"$nulls":4},400,0]
[null,"Peanut Butter Sandwich and Strawberry Jelly on Whole Grain Bread, no crust, IW, 2.6 oz.  To meet 1 MA and 1 WGR equivalent ","72/2.6 oz","Smuckers 6961 ",{"$nulls":4},100,0]
[null,"Soy butter and jellly sandwich, no crust, 1 sandwich=1.00 M/MA and 1.0 WGR equivalent","72/2.4 oz","Albie's EZ Jammer  607",{"$nulls":4},10,0]
[null,"Yogurt, Lowfat Vanilla Bulk in bags blended yogurt, 4 oz=1 MA","4/5#","Yoglait Parfait Pro 16632",{"$nulls":4},40,0]
[null,"Yogurt, Go Big, Strawberry  4 oz. 1 M/MA ","48/4 oz","Yoplait 47402",{"$nulls":4},30,0]
[null,"Yogurt, Strawberry tubes, 2.0 oz. 1 M/MA","96/2 oz","Yoplait 49295",{"$nulls":4},5,0]
[null,"Yogurt, Lowfat Raspberry Rainbow 4 oz=1 MA","48/4 oz","Yoplait Trix 17725",{"$nulls":4},75,{"$f":"I177*F177","v":0}]
[null,"Yogurt, Lowfat Triple Cherry 4 oz=1 MA","48/4 oz","Yoplait 31077",{"$nulls":4},20,{"$f":"I178*F178","v":0}]
[null,"Yogurt, Lowfat Strawberry Banana, 4 oz=1 MA  ","48/4 oz","Upstate 9820 or Yoplait 17726 ",{"$nulls":4},20,0]
[null,"Tuna, Light Chunk in Water, 43 oz. pouch, low sodium ","6/43 oz pouch","StarKist 514540",{"$nulls":4},10,0]
[null,"Frozen Meats and Entrees",{"$nulls":7},0]
[null,"Beef, Ground, 100%, fine ground, fat content not to exceed 20%, frozen, Keeper Casing, 10# packages,Trans Fats are naturally occuring  ","1/10# or greater ","Packer",{"$nulls":4},10,0]
[null,"Beef, Roast Deli, Cooked","1/#","ASE John Morrell 4530028451",{"$nulls":4},10,0]
[null,"Beef Patty, CN, seasoned, fully cooked and flamebroiled, Soy added, sleeve packed. Each 2.5 oz patty =2 M/MA","200/2.5 oz","Advance Pierre   3155-5250",{"$nulls":4},20,0]
[null,"Beef Patty, 100% All Beef Wide, 24-26% fat, 3.2 oz = 2 M/MA","50/3.2 oz","Holten 12551",{"$nulls":4},75,0]
[null,"Meatballs, Italian Pork and Beef, CN, 3 -1 oz. Cooked meatballs provide 2 M/MA.  ","10#","Tyson 24711-928",{"$nulls":4},100,0]
[null,"Beef, Breaded Chuckwagon, Homestyle, Oven Ready ","40/4 oz","Travis 1844",{"$nulls":4},75,0]
[null,"Beef, Breaded Chicken Fried Pattie CN, 1 = 2 M/MA and .75 WGR","102/3 oz","Advance Pierre 95322CN",{"$nulls":4},35,0]
[null,"Beef, Breaded Steak Fritter for Biscuit CN 1 = 1M/MA and .50 WGR","250/1.97 oz","Advance Pierre 68033",{"$nulls":4},35,0]
[null,"Beef Slices, Steakeze, Fully Cooked, 3 oz = 2 M/MA","4/2.5#","Advance Pierre 20310",{"$nulls":4},25,0]
[null,"Beef, Dipper with teryaki sauce, CN, 4 dippers = 2 oz. M/MA","400/.7 oz","Advance Pierre 3827",{"$nulls":4},175,0]
[null,"Burrito, Bean and Cheese, CN Label, Each 5.20 oz. Burrito provides 2 M/MA and 2 WGR equivalents","48/5.2 oz.","Los Cabos 63540",{"$nulls":4},50,0]
[null,"Chicken and Chili Crispitos, Fully Cooked, CN, WG. Each 3.45 oz serving provides 1 M/MA and 1 WGR equivalent","72/3.45 oz","State Fair/Tyson  24569-0821",{"$nulls":4},500,0]
[null,"Chicken Sandwich Patty, CN, meets 2 M/MA and .75 WGR Eq","90/3 oz","Advance Pierre 62130CN WG",{"$nulls":4},225,0]
[null,"Chicken Sandwich Patty,  CN meets 2 M/MA and 1 WGR Eq","60/3.63 oz","Tyson           2379-928",{"$nulls":4},600,0]
[null,"Chicken, Breakfast Patty, meets 1 M/MA and 0.5 WGREquivalent ","218/2.2 oz","Gold Kist 7519",{"$nulls":4},150,0]
[null,"Chicken, Nuggets, 5 nuggets=2M/MA and 1 WGREquivalent","250/.69 oz","Tyson 2378-928   ",{"$nulls":4},1100,0]
[null,"Chicken Sandwich Spicy,Patty, Whole Grain breaded fully cooked medium spicy, meets 2 M/MA and 1 Grain equivalent","20#","Proview 50011WG",{"$nulls":4},100,0]
[null,"Chicken, Whole Grain Large Popcorn Style Fully Cooked Chicken, CN Label,10 pieces=2 M/MA and 1 WGR Equivalent","30#/108/4.3 oz","Gold Kist 110452  ",{"$nulls":4},100,0]
[null,"Chicken Sticks, Buffalo Style, whole grain, fully cooked, 4 pieces=2M/MA and 1 WGR equivalent","10#","Milford Valley 003881110",{"$nulls":4},25,{"$f":"I200*F200","v":0}]
[null,"Chicken, fully cooked 1/2\" diced, 80%dark and 20% light, no fillers.  3.0 oz should equal minimum2.0 M/MA","10#","GoldKist       Tyson",{"$nulls":4},5,0]
[null,"Chicken Fajita Strips w/ISP, fully cooked grill marked, 2.45oz=minimum 2M/MA","2/5#","Perdue 07325",{"$nulls":4},10,0]
[null,"Chicken Breast Tender Fritter, Brd. Raw, Ind. Froz., Savory, ","2/5#","Albertville 68272",{"$nulls":4},1500,0]
[null,"Chicken Tender, CN, FC, WG breaded, with bite of whole muscle, 3 tenders = 2 M/MA and 1.25 WG","110/4.35 oz servings","Goldkist 7572",{"$nulls":4},200,0]
[null,"Chicken Breast Fillet, Flame Broiled,CN Label, Boneless, skinless, Shaped into a fillet, char marked","58/2.8 oz","Advance Pierre 67028CN",{"$nulls":4},250,0]
[null,"Chicken Strip, Gluten Free, 3 tenders = 2 m/ma  Potato Coating deep fry or oven bake","10 lb","Brakebush 5810",{"$nulls":4},5,0]
[null,"Mandarin Orange Chicken, Battered chicken and glazed with mandarin orange zesty sauce, serving size 3.6 oz. ","6-5 lb.                                 6-36 oz.","Ling's 15552-4",{"$nulls":4},40,0]
[null,"General Tso's Chicken, Chicken and sauce","6-5 lb.                                 6-36 oz.","Ling's 15563-0",{"$nulls":4},50,0]
[null,"Chicken Wing, Cooked, Tabasco, 1&2 joint, 70-120 wings per case,  3 = 2.25 M/MA","10#","Tyson 1059-928",{"$nulls":4},10,0]
[null,"Chicken, Drumstick, Raw, IQF  3.55 oz drumstick =  1.5 M/MA","96/3.55oz","Tyson 9657-928",{"$nulls":4},5,0]
[null,"Chicken, Thigh, Raw, IQF  7.93 oz thigh = 3.25 M/MA","96/7.93 oz","Tyson 8808-928",{"$nulls":4},5,0]
[null,"Chicken, Breast, Raw, IQF  3.47 oz = 2.42 M/MA","40/4 oz","Albertville 5047",{"$nulls":4},5,0]
[null,"Corn Dog Minis, chicken, 6=2 M/MA and 2 WGR equivalents","2/5#","Foster Farms 96086",{"$nulls":4},200,0]
[null,"Corn Dog, Whole Grain Chicken Frank, 1=2M/MA and 2 WGR Equivalents","10#","Foster Farms  95150",{"$nulls":4},300,0]
[null,"Fish, Pollock Dixie Crunch Breaded,Par Fried breaded fish portions","12#/53/3.6 oz serv","Samband 10001994",{"$nulls":4},50,0]
[null,"Fish, Pollock  WG, CN, FishFries,  3/1.25 oz.  Single Frozen, ","20 #","High Liner Foods 53989",{"$nulls":4},35,0]
[null,"Fish Nuggets, Cod pieces 4=2 m/ma, 138-158 ct nuggets per case - not CN Label, Fishery Products only - no substitute","10 #","Highliner Foods 1029103",{"$nulls":4},25,0]
[null,"Bologna, all meat (beef/pork;beef predominant) No fillers, USDA inspected, IMPS #801, no artificial coloring, no variety meats,                                  ","15#","Elm Hill 6020",{"$nulls":4},5,0]
[null,"Ham, Sliced Deli style, 98% fat free, contains <2% salt, sugar cured and sliced 1/2 oz, VENDOR give weight of product to meet 2 M/MA","6/2#","Kentuckian Gold 05940",{"$nulls":4},5,0]
[null,"Pancake on a stick, WG Pancake Batter wrapped precooked ground pork, turkey and VPP skinless link on a stick.  1= 1 M/MA and 1 grain equivalent","60/2.51 oz","Tyson/JD  19010",{"$nulls":4},500,0]
[null,"Pork Rib Patty, fully cooked, with BBQ Sauce, CN 3.1 oz patty equals 2 M/MA","52/3.1","Advance Pierre  80825CN",{"$nulls":4},150,0]
[null,"Pork Sausage patties, fully cooked 2 oz. sausage patty = 1M/MA","96/2 oz","Ole South 48807OSJ",{"$nulls":4},325,0]
[null,"Pork Sausage patties,  2.9 \" dia, uncooked sliced sausage patty=1M/MA. Blend of pork trimmings with not hearts, tongues, meat by products, vegetable proteins or non meat fillers allowed.  ","132/1.5 oz","RPD 58986",{"$nulls":4},325,0]
[null,"Sausage, Chicken, CN, IQF fully cooked, lightly seasoned. Zero TF ","355/1.35 oz","Gold Kist 6390",{"$nulls":4},50,0]
[null,"Smokies, Cocktail, CN, Fully Cooked","4/2.5 #","Bryan 23268",{"$nulls":4},10,0]
[null,"Bacon, Pre-Cooked, 2/150 count, Value Fresh","2/150 count","Farmland 125000",{"$nulls":4},250,0]
[null,"Turkey, sliced deli style, oven roasted, formed, Vendor should state weight needed to meet 2 M/MA","6/2#","Kentuckian Gold 05930",{"$nulls":4},15,0]
[null,"Turkey, Pulled White, Fully Cooked, no salt added","2/5#","Jennie-O 3207",{"$nulls":4},20,0]
[null,"Wiener, turkey, fully cooked, CN, 2 oz = 2 M/MA,  8-1","4/5#","Jennie-O 6128-69",{"$nulls":4},5,0]
[null,"Wiener, pork and beef, fully cooked, 2 oz=2M/MA - 8-1","10#","Field's 5526      ",{"$nulls":4},350,{"$f":"I230*F230","v":0}]
[null,"Wiener, pork and beef, fully cooked, - 3.2 oz  - 5-1","10#","Field's 5521          ",{"$nulls":4},20,0]
[null,"        PIZZA          ",{"$nulls":7},0]
[null,"Pizza, Whole Grain Smart  Pepperoni,  4x6 , CN Label, must meet 2 M/MA and 2 WGR equivalents, 1/8 c red orange vegetable. "," 96/4.48 oz","Tonys 78674",{"$nulls":4},250,0]
[null,"Pizza, Whole Grain Smart Cheese, 4x6, CN Label,  2 M/MA and 2 WGR equivalents, 1/8 c red orange vegetable.","96/4.60 oz","Tonys 78673",{"$nulls":4},250,0]
[null,"Pizza, Whole Grain 4 x 6 Pepperoni, 5.0 oz = 2 M/MA and 2 WGR equivalents, 1/8 c red Orange","96/5.0 oz","Nardone 96WWP2 4x6",{"$nulls":4},50,0]
[null,"Pizza, Whole Grain 4 x 6 Cheese, 5.0 oz = 2 M/MA and 2 WGR equivalents, 1/8 c red Orange","96/5.0 oz","Nardone 96WW2CH 4x6",{"$nulls":4},50,0]
[null,"Cheese French Bread Garlic Pizza WG Bread. Meets 2M/MA and 2 WGR equivalents.","60/4.5 oz","Nardone  60WGUM2",{"$nulls":4},25,{"$f":"I237*F237","v":0}]
[null,"Pizza, Real Slice Cheese, each 4.8 oz. slice to meet 2 of wg equivalent , 2 oz. m/ma, and 1/8 cup r/o veg, CN Label 100% Moz Cheese","96/4.8 oz.","Conagra - The Max 12617",{"$nulls":4},50,0]
[null,"Pizza, 5\" Deep dish Whole Grain, low sodium, Cheese pizza.  Meets 2M/MA and 2 WGR equivalents and 1/8 c red orange vegetable.","60/5.03 oz","Tony's 72580",{"$nulls":4},75,0]
[null,"Pizza, 5\" Deep dish Whole Grain, low sodium, Pepperoni and Cheese pizza.  Meets 2M/MA and 2 WGR equivalents and 1/8 c red orange vegetable.","60/4.88 oz","Tony's 72581",{"$nulls":4},75,0]
[null,"Pizza, stuffed cheese WG crust, Cheese, medium sliced wedge.  1 slice equals 2M/MA and 2 WGR equivalents.","96/4.5oz","Gilardi 12671",{"$nulls":4},100,0]
[null,"Pizza, stuffed cheese WG crust, Pepperoni and Cheese, medium sliced wedge.  1 slice equals 2M/MA and 2 WGR equivalents.","96/4.5oz","Gilardi 12682",{"$nulls":4},225,0]
[null,"Pizza, Chicken, Buffalo Style.  Meets 2M/MA and 2 WGR equivalents.","72/4.5 oz","Tony BD 78639",{"$nulls":4},175,0]
[null,"Pizza, Four Meat.  Meets 2M/MA and 2 WGR equivalents.","72/4.5 oz","Tony BD 78640",{"$nulls":4},50,0]
[null,"Pizza, WG Crust, Turkey Sausage Breakfast Pizza, Meets 1 M/MA and 1.50 WGR equivalent.","128/3.31 oz","Tony's 63912",{"$nulls":4},225,0]
[null,"Pizza, Boat with Egg, Cheese, Turkey Bacon with White Cheese Sauce, CN, WG, 1 = 1  M/MA, 1.5 WGR","96/3.09 oz","Gilardi 12467",{"$nulls":4},40,0]
[null,"Pizza, Cheese, Gluten Free",null,"UDI Brand",{"$nulls":4},5,0]
[null,"CHEESE FILLED BREAD ENTRÉE",{"$nulls":7},0]
[null,"Cheese Filled Mozzarella Breadsticks, w/ promo bag.  1 stick=1 M/MA and 1 WGR eqivalent.  ","144/2.21 oz","Gilardi 20117",{"$nulls":4},10,0]
[null,"Pizza Sticks, 50/50 Mozzarella Cheese Filled, CN Label - One 1.93 oz. portion provides 1 oz m/ma, 1 oz. wg","192/1.93 oz.","ConAgra - Maxstix 77387-12439",{"$nulls":4},150,0]
[null,"Pizza Cheese, Quesadilla, CN Label, One 4.83 oz. meets 2 oz. m/ma, 2 oz. equivalent grains and 1/8 cup r/o vegetable","96/4.83 oz.","ConAgra - Max 12699",{"$nulls":4},75,0]
[null,"Pizza Chicken, Quesadilla, CN Label, One 5.0 oz. meets 2 oz. m/ma, 2 oz. equivalent grains and 1/8 cup r/o vegetable","96/5.0 oz.","ConAgra - Max 12700",{"$nulls":4},35,0]
[null,"Calzone, 3 Cheese, CN, WGR, 1 = 2 M/MA, 2 WGEq, 1/8 c. red/orange","60/4.69 oz","Con-Agra 16272-20120",{"$nulls":4},25,0]
[{"$nulls":9},{"$f":"I254*F254","v":0}]
[null,"FROZEN FRUIT/DESSERTS",{"$nulls":7},0]
[null,"Non-dairy whipped topping; On Top in pouch ready to serve","6/6.5#","Rich 02559",{"$nulls":4},5,0]
[null,"Bettercreme RTU Icing Vanilla","1/9 lb.","Richs 06429",{"$nulls":4},5,0]
[{"$nulls":9},0]
[null,"FROZEN GRAINS/BREAKFAST FOODS",{"$nulls":7},0]
[null,"Biscuits, Dough, Southern Style, TFF, easy split =2 grain Equivalents ","216/2.51 oz","Pillsbury 110752000",{"$nulls":4},700,0]
[null,"Bagel, white, WG, 2 ounce","12/6 ct","Lenders 00074",{"$nulls":4},5,0]
[null,"Bagel, mini WGR IW Cinnamon Cream Cheese. 1=2 WGR equivalents","72/2.43 oz","Pillsbury 138399000",{"$nulls":4},25,0]
[null,"Bagel, mini WGR IW Strawberry Cream Cheese. 1=2 WGR equivalents","72/2.43 oz","Pillsbury 138413000",{"$nulls":4},30,0]
[null,"Bagel, WG, IW, Stuffed Strawberry Cream Cheese 1 bagel = 2 wg equivalent","60/2.5 oz","Super Bakery      3334",{"$nulls":4},10,0]
[null,"Breakfast Rounds, Ultimate Cinnamon ","140/2.5 oz","Richs 07816",{"$nulls":4},20,0]
[null,"Burrito, Egg Cheese Turkey Sausage, IW, WG, CN Each 2.5 oz = 1 M/1 GE","72/2.5 oz","Los Cabos 97887",{"$nulls":4},15]
[null,"Honey Bun, wg, 1 bun = 2 grain Equivalent","60/2.6 oz","Sky Blue  WWB5160",{"$nulls":4},15,0]
[null,"Roll,Parbaked Whole Grain Rich Dinner Roll= 2 WGR equivalents","90/2 oz","Sister Schubert  71457",{"$nulls":4},75,0]
[null,"Roll,Parbaked Whole Grain Rich Dinner Roll, 1.5 oz roll = 1.25 WGR equivalents (per formulation statement)","120/1.5 oz","Sister Schubert  62205",{"$nulls":4},750,0]
[null,"Texas Toast, baked, at least 50% WG, Tff, sliced, one slice equals at least 1.75 whole grain rich equivalent","10/20 slice","BakeCrafters 3313 ",{"$nulls":4},25,0]
[null,"Baked Submarine or Hoagie Roll, WGR, sliced, 4 inch--              each bun equals minimum of 2 WGR equivalents","96/1.8 oz","BakeCrafters4047  ",{"$nulls":4},50,0]
[null,"Hoagie Roll, WG, baked, hinge sliced, 5 inch, each bun equals minimum of 2 WGR equivalents","120/2 oz","BakeCrafters 1401",{"$nulls":4},125,0]
[null,"Baked Loaf Bread (sandwich) sliced, 1 slice equals minimum of 1 WGR Equivalent.  No seeds or loose grains. ","12/28oz","Bake Crafters  3357",{"$nulls":4},400,0]
[null,"Baked Hamburger Buns, sliced. (F)  No seeds or loose grains.  Must have smooth top. 4\" white round that equals 2 WGR equivalents.","96/1.8 oz","Super Bakery    7671",{"$nulls":4},900,0]
[null,"Baked Hot Dog Buns, sliced. (F) No seeds or loose grains.  Must have smooth top. 6\" WGR bun equals 2 WGR equivalents.","144/2 oz"," Super Bakery 7675",{"$nulls":4},200,0]
[null,"Baked Sliced Slider Bun, No seeds or loose grains.  Each bun=1 WGR equivalent","288/1 .3oz","Bakecrafters 519 or Super Bakery    7669",{"$nulls":4},150,0]
[null,"Bread Bowl, baked, frozen, bulk, 1=2 WGR equivalents","90/2 oz","Super Bakery 8676",{"$nulls":4},20,0]
[null,"Bread Stick, WG, Heat and Serve","168/ca","New York 15023",{"$nulls":4},175,0]
[null,"Cupcakes, Chocolate, WG, lW","72/1.5 oz","SuperBakery 9488",{"$nulls":4},25,0]
[null,"Cupcakes, White/White, IC WG, IW","72/1.5 OZ","Super Bakery 9489",{"$nulls":4},25,0]
[null,"Cinnamon Mini, Pillsbury Minnis, WG, 2 oz. Gr Equivalent ","72/2.29 oz","Pillsbury 33686",{"$nulls":4},125,0]
[null,"Frudel Rolls, Apple, WG, IW, 1 roll = 2 oz wg equivalent",72,"Pillsbury  27852",{"$nulls":4},75,0]
[null,"Frudel Rolls, Cherry, WG, IW, 1 roll = 2 oz wg equivalent",72,"Pillsbury 27851",{"$nulls":4},100,0]
[null,"Donuts, Mini Powdered WGR, IW in pack of 6=2 WGR eqivalents","72/6 ct 3 oz","Super Bakery 7787  ",{"$nulls":4},175,0]
[null,"Donut, Donut Goodyring yeast donut, glazed, WGR, IW.  1=2 WGR eqivalents","80/2.5 oz","Super Bakery 18400",{"$nulls":4},75,0]
[null,"Donut, Super Fortified donut,  51% WG, Frozen, IW.  1= 1 WGR eqivalents","80/1.9 oz","Super Bakery 18350",{"$nulls":4},75,0]
[null,"French Toast, IW, WGR Mini French Toast, 1 package= 2 WGR equivalents","72/2.64 oz","Pillsbury 37309",{"$nulls":4},50,0]
[null,"French Toast Stick, Wg, 2 = 1.75 grain equivalent","6/2 lb","FarmRich 37717",{"$nulls":4},225,0]
[null,"Muffin, WGR IW, Banana  1 muffin=1 WGR equivalents","72/2 oz","Otis Spunkmeyer  10144",{"$nulls":4},75,0]
[null,"Muffin, WGR IW, Blueberry  1 muffin=1 WGR equivalents","72/2 oz","Otis Spunkmeyer  10143",{"$nulls":4},75,0]
[null,"Muffin, WGR, RF, IW, Blueberry.  1 top=1 WGR equivalent","96/2 oz","BakeCrafters 1201",{"$nulls":4},60,{"$f":"I291*F291","v":0}]
[null,"Pancake, Bulk 4\" WG","144/1.2 oz",{"$nulls":5},10,0]
[null,"Pancake Sandwich with Blueberry Glaze, WGR, IW, frozen, 1=2 WGR equivalents","80/3 oz","ConAgra 04443",{"$nulls":4},10,0]
[null,"Pancakes, WGR Mini Maple Pancakes, IW ovenable pouch equals 2 WGR equivalents","72/3.17 oz"," Pillsbury 137732000",{"$nulls":4},150,0]
[null,"Pancakes, WGR Mini Strawberry Pancakes, IW ovenable pouch equals 2 WGR equivalents","72/3.17 oz","Pillsbury 1377310001",{"$nulls":4},40,0]
[null,"Churro, WG, IW, Cinnamon, 1.48 oz to equal 1 grain equivalent","100/cs","J &J Snacks 41149",{"$nulls":4},25,0]
[null,"Pie, Pumpkin, pre-baked 10 inch  ","6/10\"","Chef Pierre 09281",{"$nulls":4},50,0]
[null,"Pie, Pecan, pre-baked 10 inch","6/10\"","Chef Pierre 09273",{"$nulls":4},40,0]
[null,"Waffles, baked, WGR, bulk, 1 waffle equals 1 WGR equivalent","144/1.25 oz","National Food Group MF9201W",{"$nulls":4},20,0]
[null,"Bread, Ciabatta, WG - I bun to equal 2 oz. eq. grain, pre sliced, 170 mg sodium per serving","96/1,8 oz.","Pillsbury 100-94562-37738-7",{"$nulls":4},10,0]
[null,"Bread, Panini, WG, 1 oz. eq. grain 1 piece, 100 mg. sodium per piece, no artificial flavors or colors","192/.82 oz.","Pillsbury 100-94562-37737-0",{"$nulls":4},50,0]
[null,"Bread, flat, 6\" round WGR Gordita Style Bread, Ultra Loco Bread, each 2 oz.portion to provide 2 grains","12/12 ct","Fathers Table 01188",{"$nulls":4},75,0]
[null,"Bread, Honey Whole Wheat Goldfish 1.5 oz = 1 grain equivalent","120/ 1.5 oz","Campbells 19933",{"$nulls":4},25,0]
[null,"Pretzel, Soft Snack Mini, WG, 1 = 1 WG Equivalent","200/1 OZ","J&J 30113",{"$nulls":4},10,0]
[null,"Crossaints, Sliced round, WG, TFF, 2.2 oz. 1 = 2 WGR equivalent","144/2.2 oz","Hadley  139",{"$nulls":4},75,0]
[null,"Crossaints, Sliced round, WG, TFF, 1.25 oz. 1 = 1 WGR equivalent","210/1.25","Hadley  134",{"$nulls":4},20,0]
[null,"Hushpuppies, WG, Classic, 3=1.5 grain equivalent ","2/5 #","Savannah 10015",{"$nulls":4},75,0]
[null,"Bun, Hamburger, Gluten Free","24/3.2 oz","UDI'S UGF806441",{"$nulls":4},5,0]
[null,"Bun, Hot Dog, Gluten Free","24/2.4 oz","Udi's UGF806201",{"$nulls":4},5,{"$f":"I309*F309","v":0}]
[null,"Bread,  Whole Grain Sliced Sandwich Loaf, Gluten Free",null,"UDI'S",{"$nulls":4},5]
[null," GRAIN BASED SNACK ITEMS",{"$nulls":7},0]
[null,"Chips, Bulk,WGR, GF, Yellow Tortilla round chips.  1 oz=1 WGR equivalent","12/16 oz","Barrel of Fun  40404",{"$nulls":4},30,{"$f":"I312*F312","v":0}]
[null,"Chips, WGR IW White Tortilla round chips.  1 pack=1.25 WGR equivalent","104/.875","Tostitos Frito Lay 18792",{"$nulls":4},125,0]
[null,"Chip, WGR, IW Scoop Baked Tortilla Chip, 1 pack = 1.25 WGR","72/.875 oz","Tostitos Frito Lay 42537",{"$nulls":4},150,0]
[null,"Chips, WGR IW Cheese Puffs, RF. 1 pack=1 WGR equivalent","72/.7 oz","Frito Lay  21910",{"$nulls":4},75,0]
[null,"Chips, WGR, IW Cool Ranch RF.  1 pack=1 WGR equivalent","72/1oz","Frito Lay 36096",{"$nulls":4},225,0]
[null,"Chips, WGR, IW Nacho Flavored RF.  1 pack=1 WGR equivalent","72/1 oz","Frito Lay 31748",{"$nulls":4},300,0]
[null,"Chips, WGR, IW Spicy Sweet Chili RF.  1 pack=1 WGR equivalent","72/1 oz","Frito Lay 49093",{"$nulls":4},50,0]
[null,"Chips, WGR, IW Chili Cheese Baked. 1 pack=1 WGR equivalent","104/1oz","Cheetos Frito Lay 36098",{"$nulls":4},125,0]
[null,"Chips, WGR, RF, IW Flaming Hot Baked. 1 pack=1 WGR equivalent","72/.7 oz","Cheetos Frito Lay 21912",{"$nulls":4},50,0]
[null,"Chips, WGR, IW Tortilla Scoop Crackers. 1 pack=1 WGR equivalent","72/.875 oz","Frito Lay 42537",{"$nulls":4},175,0]
[null,"Chip, Potato, Baked Crisp","64/1.25","Frito Lay 44396",{"$nulls":4},150,0]
[null,"Ruffles, Baked Cheddar and Sour Cream","60/.8 oz","Frito Lay 56882",{"$nulls":4},25,0]
[null,"Munchies, Kid Snack Pack, 1 pack = 1 wg","104/1 oz","Frito Lay 36308",{"$nulls":4},25,0]
[null,"Chex, Mix Strawberry Yogurt, WG, 1 pack = 1 Ge","60/1.03 oz","General Mills 31937",{"$nulls":4},50,0]
[null,"Goldfish Shaped Baked WGR Crackers, IW, Cheddar Cheese, Colored crackers, 1 pack  = 1 wgr equivalent","300/0.9 oz packs","Pepperidge Farm 04788   ",{"$nulls":4},100,0]
[null,"Goldfish Shaped Baked WGR Crackers, IW, Cheddar Cheese, 1 pack=1 WGR equivalent ","100/0.75 oz packs","Pepperidge Farm 18197",{"$nulls":4},125,0]
[null,"Goldfish, Graham Cracker, Cinn Giant","300/2 ct","Pepperidge Farm 15094",{"$nulls":4},100,0]
[null,"Cheese crackers, WGR, IW. 1 pack=1 WGR equivalent","175/.75oz","Keebler      Cheez It 2410079263",{"$nulls":4},25,0]
[null,"Graham Cracker Snack Bug Bite shaped cinnamon graham crackers, WG, 1 oz. equivalent ","210/ 1 oz.","Keebler                 30100-55644",{"$nulls":4},25,0]
[null,"Graham Cracker Snack, Sticks, Cinnamon, Canine Figures, WGR. 1 package=1 WGR equivalent","210/1oz","Keebler 3010050689",{"$nulls":4},25,0]
[null,"Cookie, Animal Vanilla WG, meets 1 oz grain equivalent","150/1 oz","Keebler 3010020150",{"$nulls":4},15,0]
[null,"Cookies, chocolate chip mini, WGR pouch. 1 pack=1 WGR equivalent","80/1.22 oz","Grandmas 66154",{"$nulls":4},25,0]
[null,"Cookie, Candy w/M & M's, 1 oz., WG, RF, Smart Snack Compliant, pre portioned Dough","245/1 oz","Bonzer 71035",{"$nulls":4},10,0]
[null,"Cookie, Chocolate Chip, 1 oz. frz pre portioned Dough, WG, RF, Smart Snack Compliant","245/1 oz","Bonzer 71001",{"$nulls":4},10,0]
[null,"Cookie, Oatmeal Raisin, 1 oz. frz pre portioned Dough, WG, RF, Smart Snack Compliant","245/1 oz","Bonzer 71085",{"$nulls":4},5,0]
[null,"Cookie, Vanilla Sugar, 1 oz. frz pre portioned Dough, WG, RF, Smart Snack Compliant","245/1 oz","Bonzer 71021",{"$nulls":4},5,0]
[null,"Cookie,Candy w/M&M's, 1.5oz. frz pre portioned Dough, WG, RF","168/1.5 oz","Bonzers 71535",{"$nulls":4},40,0]
[null,"Cookie, Chocolate Chip, 1.5oz. frz pre portioned Dough, WG, RF","168/1.5 oz","Bonzers 71501",{"$nulls":4},125,0]
[null,"Cookie, White Chocolate, 1.5oz. frz pre portioned Dough, WG, RF","168/1.5 oz","Bonzers 71507",{"$nulls":4},125,0]
[null,"Cookie, Oatmeal Raisin, 1.5oz. frz pre portioned Dough, WG, RF","168/1.5 oz","Bonzers 71585",{"$nulls":4},5,0]
[null,"Cookie, Vanilla Sugar, 1.5oz. frz pre portioned Dough, WG, RF","168/1.5 oz","Bonzers 71521",{"$nulls":4},10,0]
[null,"Popcorn, WGR, IW, Kettle","90/1 oz","Vics 25076",{"$nulls":4},15,0]
[null,"Popcorn, WGR, IW white cheddar flavor. Smart Snack compliant.","104/.5oz","Smartfood  Delight 25566",{"$nulls":4},15,0]
[null,"Rice Krispy Treats, WGR, IW 1 package=1 WGR equivalent","50/1.6 oz","Super Bakery 9432        ",{"$nulls":4},75,0]
[null,"Crouton, Country, Cheese Garlic, WG","4/2.5#","Fresh Gourmet 74581",{"$nulls":4},40,0]
[null,"Sunflower, kernel, unsalted","3/2 lb","Azar 7115796",{"$nulls":4},15,0]
[null,"REFRIGERATED ITEMS",{"$nulls":7},0]
[null,"Margarine solids, vegetable, Tff, light yellow, 1 # block","30/1#",{"$nulls":5},75,0]
[null,"Butter/Margarine Blend, 60-40 blend","36/1 lb.","SommerMaid 50620",{"$nulls":4},25,0]
[null,"Dressing, Ranch Jalapeno, refrig","100/1.5 0z","Naturally Fresh 4480",{"$nulls":4},200,0]
[null,"Dressing, Honey Mustard,  Cup","100/1 oz","Naturally Fresh 3570",{"$nulls":4},700,0]
[null,"Dressing, Honey Mustard, Light, Reduced Sodium","100/1oz","Diamond Crystal 70807"," ",{"$nulls":3},10,{"$f":"I353*F353","v":0}]
[null,"Dressing, Italian Light Reduced Sodium, cup","100/1 oz","Diamond Crystal 70804",{"$nulls":4},10,0]
[null,"Dressing, Italian, Light, Individual ","200/12 gr","Diamond Crystal 73037",{"$nulls":4},10,0]
[null,"Dressing, Ranch Buttermilk","200/12 gr","Restaruant Pride  74170",{"$nulls":4},400,0]
[null,"Dressing, Ranch Buttermilk, reduced sodium","200/12 gr","Diamond Crystal 73014",{"$nulls":4},40,0]
[null,"Dressing, 1000 Island Light, reduced sodium","200/12 gr","Diamond Crystal 73007",{"$nulls":4},5,0]
[null,"Dressing, French Light, reduced sodium","200/12 gr","Diamond Crystal 73005",{"$nulls":4},5,0]
[null,"Dressing, Jalapeno Ranch light, cup","100/1 oz","Dixie Crystals 70802",{"$nulls":4},10,0]
[null,"Dressing, Ranch, Cup","100/1.5 oz","Naturally Fresh  4460",{"$nulls":4},25,0]
[null,"Dressing, Ranch, Pouch","60/1.5 oz","Ken's 0789B3",{"$nulls":4},150,0]
[null,"Dressing, Ranch Fat Free, cup","100/1.5 oz","Naturally Fresh  4470",{"$nulls":4},20,0]
[null,"Dressing, Ranch Fat Free Pouch","60/1.5 oz.","Ken's 0026B3",{"$nulls":4},50,0]
[null,"Dressing, California French, Fat Free ","60/1.5 oz","Ken's 809B3",{"$nulls":4},2,0]
[null,"Dressing, Country French  w/Honey  Ind.","60/1.5 oz","Ken's 0033B3",{"$nulls":4},25,0]
[null,"Dressing, Raspberry Vinagerette  FF Pouch, IND. ","60/1.5 oz.","Ken's 0630B3 ",{"$nulls":4},5,0]
[null,"Dressing, Honey Dijon, Fat Free, Pouch","60/1.5 oz.","Ken's 0600B3",{"$nulls":4},5,0]
[null,"Dressing, Italian, Fat Free, Pouch","60/1.5 oz","Ken's 0807B3",{"$nulls":4},10,0]
[null,"Dressing, 1000 Island Fat Free Pouch","60/1.5 oz.","Ken's 1019B3",{"$nulls":4},5,0]
[null,"Dressing, Ranch Jalapeno, refrig","4/1 gal","Naturally Fresh ",{"$nulls":4},35,0]
[null,"Dressing, Coleslaw","4/1 gal","RP 4820027130",{"$nulls":4},5,0]
[null,"Dressing, Zesty Italian","4/1 gall","Dukes 6122",{"$nulls":4},5,0]
[null,"Dressing, Ceasar, Classic","4/1 gal","Bay Valley 0114-8501193",{"$nulls":4},5,0]
[null,"Honey Mustard, Dressing ","4/ 1 gal","RP 4820027068",{"$nulls":4},20,{"$f":"I375*F375","v":0}]
[null,"Mandarin Orange Ginger Dressing","4/1 gal","Ken's KE 0512",{"$nulls":4},10,0]
[null,"Margarine Cups, pk 10 gr, Zero Trans Fat","450 ct","Land-O-Lakes",{"$nulls":4},25,0]
[null,"Sour Cream, Real , Ind. Pk.","100/1 oz","Daisy 0017307",{"$nulls":4},150,0]
[null,"Sour Cream ,Fat Free, Ind. Pk.","100/1 oz","Land-O-Lakes 0017107"," ",{"$nulls":3},100,0]
[null,"DRY GOODS",{"$nulls":7},0]
[null,"Cereal Bars/Cereal/Poptarts  RS=reduced sugar",{"$nulls":7},0]
[null,"Cereal, WGR RS Frosted Flakes, 1 oz=1 WGR equivalent","96/1 oz","Kelloggs   3800054998",{"$nulls":4},75,0]
[null,"Cereal WGR RS Cinnamon Crunch, 1 oz=1 WGR equivalent","96/1 oz","GM  29444000",{"$nulls":4},150,0]
[null,"Cereal WGR RS Cocoa Puffs, 1 oz=1 WGR equivalent","96/1 oz","GM 31888000",{"$nulls":4},200,0]
[null,"Cereal, WGR Oat Cheerios-Gluten Free, 1 oz=1 WGR equivalent","96/1 oz","GM 32262000",{"$nulls":4},10,0]
[null,"Cereal, Rice Chex, WGR Gluten Free, 1 oz=1 WGR equivalent","96/1oz","GM 31921000",{"$nulls":4},10,0]
[null,"Cereal, Fruit Loops WG, RS","96/1oz","Kelloggs 3800078788",{"$nulls":4},125,0]
[null,"Cereal, WGR RS, Trix, 1 oz=1 WGR equivalent","96/ 1oz","GM 31922",{"$nulls":4},25,0]
[null,"Cereal, Lucky Charms WG ","96/ 1oz","GM 31917",{"$nulls":4},200,0]
[null,"Chex, Honey Nut WG Rich, Gluten Free 1 bowl pk = 1 wg eq","96/ 1.13oz","GM 11866",{"$nulls":4},25,0]
[null,"Cereal, Honey Nut Cheerios WG ","96/1oz","GM 11918",{"$nulls":4},75,0]
[null,"Cereal, Apple Jacks RS WG ","96/1oz","Kelloggs 3800078787",{"$nulls":4},50,0]
[null,"Cereal, Raisin Bran, WG, 1.25 GE","96/1oz","Kelloggs 3800000896",{"$nulls":4},10,0]
[null,"Cereal, Frosted Mini Wheats, WG, 1 GE","96/1oz","Kelloggs 3800004996",{"$nulls":4},30,0]
[null,"Cereal Bar, WGR, Cheerios Fruity,1 oz=1 WGR equivalent ","96/1.42 oz","GM  31914",{"$nulls":4},15,0]
[null,"Cereal Bar, WGR, Cocoa Puffs,1 oz=1 WGR equivalent","96/1.42 oz","GM 45577",{"$nulls":4},15,0]
[null,"Cereal Bar, Cinnamon Toast, 1 oz=1WGR equivalent","96/1.42 oz","GM 45576",{"$nulls":4},15,0]
[null,"Bar, Apple Nutrigrain, 1 oz. WGR Eq","96/1.55 oz","Kelloggs 3800059779",{"$nulls":4},10,0]
[null,"Bar, Strawberry Nutrigrain, 1 oz. WGR Eq","96/1.55 oz","Kelloggs 3800059772",{"$nulls":4},10,0]
[null,"Bar, Blueberry Nutrigrain, 1 oz. WGR Eq","96/1.55 oz","Kelloggs 3800090819",{"$nulls":4},10,0]
[null,"Poptart, single WGR Frosted Brown Sugar Cinnamon,                    1 pastry=1.25 WGR equivalent","120/1.76 oz","Kelloggs 38000-55122",{"$nulls":4},50,0]
[null,"Poptart, single WGR Frosted Strawberry, 1 pastry=1.25 WGR equivalent","120/1.76 oz","Kelloggs 38000-55130",{"$nulls":4},100,0]
[null,"Poptart, 2 count, WGR Frosted Cinnamon, 2 pack=2.5 WGR equivalents","72/3.5oz","Kelloggs 38000-55125",{"$nulls":4},25,0]
[null,"Poptart, 2 count, WGR Frosted Strawberry, 2 pack=2.5 WGR equivalents","72/3.5 oz","Kelloggs 38000-55130",{"$nulls":4},25,0]
[null,"Condiments",{"$nulls":7},0]
[null,"BBQ sauce, single serve , Sweet Baby Ray Pouch","60/1.5 oz","Kens 4400B3",{"$nulls":4},15,0]
[null,"BBQ sauce, single serve - Smokey, tomato flavor and aroma","200/12 gm","RP 59252",{"$nulls":4},225,0]
[null,"BBQ Sauce, mild, Sweet Baby Ray","4/1 gal","Kens 0440HF",{"$nulls":4},15,{"$f":"I408*F408","v":0}]
[null,"BBQ Sauce, Western, Smokey","4/1 gal","Trail Blazer 05965",{"$nulls":4},50,0]
[null,"Boom Boom Sauce, cayenne pepper sauce","100/1 oz","Ken's  5936",{"$nulls":4},150,0]
[null,"Honey, strained individual servings","200/9 g",{"$nulls":5},10,0]
[null,"Hot sauce, 24/6 ounce","24/6 oz","Louisiana 02147",{"$nulls":4},5,0]
[null,"Hot sauce, individual servings","200/7 gm","Texas Pete 420939",{"$nulls":4},25,0]
[null,"Jelly, Grape 1/2 oz. Pouch","200/.5 oz","Sauer 06860",{"$nulls":4},375,0]
[null,"Jelly/Jam, Strawberry1/2 oz. Pouch","200/.5 oz","Diamond Crystal 70021",{"$nulls":4},45,0]
[null,"Jelly, Grape ","6/#10","Polaner 055485",{"$nulls":4},10,0]
[null,"Peanut Butter, Creamy","6/5#","Azar Nut Co 5456342",{"$nulls":4},25,0]
[null,"Ketchup, single serve, low sodium","1000/9 gr","Heinz 78004314",{"$nulls":4},600,0]
[null,"Mayonnaile, single serve","200/9 gr","RP59075",{"$nulls":4},250,0]
[null,"Mayonnaise, RF single serve","200/12 g","Dukes  06346",{"$nulls":4},25,0]
[null,"Mayonnaise, Regular Kraft","4/1 gal","Kraft 64219",{"$nulls":4},75,0]
[null,"Mayonnaise, RF ","4/1 gal","Ventura Foods 72040 or Kraft 64301",{"$nulls":4},25,0]
[null,"Mustard, Packets, individual serve","500/5.5 gm",{"$nulls":5},100,0]
[null,"Mustard, Pure Prepared","4/1 gal",{"$nulls":5},2,0]
[null,"Pepper packets, individual serving","6/1000ct",{"$nulls":5},2,0]
[null,"Soy Sauce, Ind pk  ","500/9 g",{"$nulls":5},15,0]
[null,"Soy Sauce, 5 oz. glass bottles, low sodium","24/5 oz.","LaChoy 44300-12515",{"$nulls":4},5,0]
[null,"Steak Sauce, Ind Pk, Traditional ","200/12 g","Heinz 533300",{"$nulls":4},10,0]
[null,"Sweet and Sour sauce, individual packages, cups","200/.75oz","Kraft 66580",{"$nulls":4},25,0]
[null,"Syrup, pancake and waffle, individual cups sugar free","100/1 oz",{"$nulls":5},500,0]
[null,"Syrup, Pancake and Waffle","4/1 gal",{"$nulls":5},2,0]
[null,"Taco Sauce, individual servings, Mild (hot flavored not acceptable)","200/9 g",{"$nulls":5},150,0]
[null,"Tartar Sauce, single serve","200/12 g",{"$nulls":5},10,0]
[null,"Buffalo Sauce","4/1 gal","Texas Pete 420946",{"$nulls":4},10,0]
[null,"Worcestershire Sauce, Low Sodium ","4/1 gal",{"$nulls":5},2,0]
[null,"Smoke, Hickory Seasoning Liquid","4/1 gal","RPP 482542",{"$nulls":4},1,0]
[null,"Cheese Sauce, Ultimate White 3 oz = 1 M/MA","6/106 oz ","Land o Lakes 39944000034500",{"$nulls":4},15,0]
[null,"Cheese, Nacho Sauce, 98% Fat Free ","6/#10","RP 2850037072",{"$nulls":4},15,0]
[null,"Cheese Sauce, Mild Cheddar, GF","6/#10","Gehl's 03204",{"$nulls":4},2,0]
[null,"Pastas and Other Grains",{"$nulls":7},0]
[null,"Crackers, saltines, individual package of 4=0.5 equivalents (not WGR)","300/4 ct","Lance 801261",{"$nulls":4},75,0]
[null,"Captain Wafer, IW Cracker  (not WGR)","500/2 ct","Lance 469750",{"$nulls":4},50,0]
[null,"Noodles, Rotini,  WG ","2/10#","Orefresco 4820073366",{"$nulls":4},5,0]
[null,"Noodles, Penne, WG","2/10#","Orefresco 4820073389",{"$nulls":4},5,0]
[null,"Noodles, spaghetti, thin, 10\" long, WG","2/10#","Orefresco 4820096208",{"$nulls":4},75,0]
[null,"Noodles, elbow macaroni  (not WGR)","2/10#","Orefresco 4820017417",{"$nulls":4},75,0]
[null,"Noodles, Lasagna, Ribbed 10\" not wg","12/1#","Orefresco 4820096612",{"$nulls":4},5,0]
[null,"Lasagna, Sheet 8.25 x 10.25\" frozen, pre cooked pasta","40/4 oz","Casa/Richs 51991",{"$nulls":4},25,0]
[null,"Noodles, Rotini Spiral Tri Color","2/10#","Orefresco 4820061825",{"$nulls":4},5,0]
[null,"Noodles, Bowtie (not WG)","2/10#","Orefresco 4820041558",{"$nulls":4},5,0]
[null,"Noodle, Medium Egg Noodle Curly, 1/4\"","1/10#","Orefresco 4820042825",{"$nulls":4},20,0]
[null,"Tortilla, flour WGR 6\" gordita","24/12 count","Don Poncho 02203",{"$nulls":4},15,0]
[null,"Tortilla, flour WGR 8\" gordita","12/12 ct","Don Poncho 2204",{"$nulls":4},100,0]
[null,"Tortilla, flour WGR 10\" gordita","12/12 ct","Don Poncho 22315",{"$nulls":4},50,0]
[null,"Shell, Taco Jumbo 22 gram, yellow 2=1.25 WG","1/200 ct","Mission 10115",{"$nulls":4},25,0]
[null,"Rice, WG Brown","25 lb","Producers Rice Mill  ",{"$nulls":4},2,0]
[null,"Rice, Mexican Fiesta","6/25.9 oz","Uncle Ben 03309",{"$nulls":4},25,0]
[null,"Rice, Brown WG Asian style","6/26.5 oz","Uncle Ben 45533",{"$nulls":4},100,0]
[null,"Rice, Brown WG Chicken Flavored","6/26.5 oz","Uncle Ben 45532",{"$nulls":4},40,0]
[null,"Noodles, Chow Mein wg, w/carrots, edamame and soy sauce","6/5.68#","Asian Solutions 22101 WG",{"$nulls":4},15,{"$f":"I460*F460","v":0}]
[null,"Vanilla Wafers, TFF, produced in a nut free facility, dairy free","12/12 oz","Carly 760406",{"$nulls":4},15,0]
[null,"Granola, Cereal Bulk, WG ","4/50 oz","Fieldstone 09799",{"$nulls":4},5,0]
[null,"Oatmeal, Quick, WG","12/42 oz","Rest Pride/Hospitality",{"$nulls":4},10,0]
[null,"Staples and Spices",{"$nulls":7},0]
[null,"Alfredo Sauce Buds Mix","8/1 lb","Butter Buds 49840",{"$nulls":4},15,{"$f":"I465*F465","v":0}]
[null,"Butter Buds Butter Flavored Granules","24/4 oz","Butter Buds 49835",{"$nulls":4},15,{"$f":"I466*F466","v":0}]
[null,"Butter Buds, Pan Release Buttermist","6/17 oz","Butter Buds 56217",{"$nulls":4},30,{"$f":"I467*F467","v":0}]
[null,"Butter Buds Pan Release Buttermist Garlic","6/17 oz","Butter Buds ",{"$nulls":4},10,0]
[null,"Baking Soda","2/12#",{"$nulls":5},2,0]
[null,"Cornstarch","24/1#","Hodgson Mill",{"$nulls":4},2,0]
[null,"Cocoa Powder, Pure, 10-12% fat","1/5 #",{"$nulls":5},2,0]
[null,"Chip, Chocolate Flavored 4000 ct","1/10 #","Ambrosia 156798",{"$nulls":4},2,0]
[null,"Topping, M&M Baking Bits","2/4#","TRTop M360-080",{"$nulls":4},5,0]
[null,"Flour, self rising","8/5#","White Lily 3250010388",{"$nulls":4},5,0]
[null,"Flour, Plain, AP","8/5#","White Lily 3250010308",{"$nulls":4},5,0]
[null,"Food Release, spray, vegetable shortening","6/16.5 oz","RP 44626",{"$nulls":4},50,0]
[null,"Food Spray, Olive Oil, Extra Virgin","6/14 oz","Tryson 14150",{"$nulls":4},5,0]
[null,"Sugar, Granulated","10/4#","Domino 400368",{"$nulls":4},50,0]
[null,"Sugar, light brown","12/2#","Domino 400592",{"$nulls":4},25,0]
[null,"Sugar confectioners 10X","12/2#","Domino 400639",{"$nulls":4},2,0]
[null,"Cornmeal, White Self Rising ","1/25#","Scotts 2431152",{"$nulls":4},5,0]
[null,"Cornbread mix, WG,  complete, add water only, TFF","6/5#","Pioneer 212643",{"$nulls":4},2,0]
[null,"Cornbread Dressing","4/4.5 lb","Savannah 33145",{"$nulls":4},65,0]
[null,"Gelatin, Lime","12/24 oz",{"$nulls":5},1,{"$f":"I484*F484","v":0}]
[null,"Gelatin, Orange","12/24 oz",{"$nulls":5},3,0]
[null,"Gelatin, Strawberry, no red dye","12/24 oz",{"$nulls":5},3,0]
[null,"Gelatin, Cherry, ","12/24 oz",{"$nulls":5},1,0]
[null,"Gelatin, Citrus, Assorted, Sugar Free","18/2.5 oz",{"$nulls":5},1,0]
[null,"Gelatin, Red Assorted, Sugar Free","18/2.5 oz",{"$nulls":5},1,0]
[null,"Gelatin, Berry Blue","12/24 oz",{"$nulls":5},2,0]
[null,"Pudding, Chocolate, Trans Fat Free","6/#10","Lucky Leaf 4820023735",{"$nulls":4},10,0]
[null,"Pudding, Vanilla, Trans Fat Free","6/#10","Lucky Leaf 4820023736",{"$nulls":4},5,0]
[null,"Milk, Evaporated","48/12 oz","RP 532460",{"$nulls":4},2,0]
[null,"Milk Sweetened Condensed ","24/14 oz","La Lechera 517806",{"$nulls":4},2,0]
[null,"Cheese Sauce Mix, ","8/2 #","Trio 38262",{"$nulls":4},10,0]
[null,"Gravy Mix, Brown LS, RF TFF","8/16 oz","Trio 38572",{"$nulls":4},25,0]
[null,"Gravy Mix, Chicken or Poultry, LS, RF TFF","8/22.6 oz","Trio 38482",{"$nulls":4},15,0]
[null,"Gravy Mix, Gravy Peppered Breakfast, LS, TFF","12/12 oz","Conestoga 99484",{"$nulls":4},50,0]
[null,"Gravy Mix, Country Gravy Peppered  TFF","6/1.5 #","CM 744-1060",{"$nulls":4},150,0]
[null,"Gravy Mix, Turkey","8/14 oz","Legout 29599",{"$nulls":4},15,0]
[null,"Gravy, Roasted Turkey, RTU ","12/50 oz","Vanee 550VT",{"$nulls":4},10,0]
[null,"Meat base, chicken GF, no added MSG, granular",null,"RP BI 52001",{"$nulls":4},5,0]
[null,"Meat base, beef GF,no added MSG, granular",null,"RP BI 66001",{"$nulls":4},5,0]
[null,"Meat base, ham, granular",null,"RP BI 12401",{"$nulls":4},5,0]
[null,"Mix, brownie, add water only, TFF","6/5lb","General Mills",{"$nulls":4},5,0]
[null,"Mix, yellow cake, add water only TFF","6/5lb","Gilster Mary Lee 65007",{"$nulls":4},2,0]
[null,"Mix, white cake, add water only TFF","6/5 lb","Gilster Mary Lee 65005",{"$nulls":4},5,0]
[null,"Mix, devil's food, add water only TFF","6/5 lb","Gilster Mary Lee 65002",{"$nulls":4},1,0]
[null,"Marshmallow, Miniature ","12/1#","Glister Mary Lee Hosp 16100",{"$nulls":4},10,0]
[null,"Yeast, Active Dry","12/2#","Fleischmanns 2192",{"$nulls":4},2,0]
[null,"Ranch Dressing Mix, GF ","18/3.2 oz","Naturally Fresh 92959515061 #535",{"$nulls":4},50,0]
[null,"Oil, Olive, Pomance, Italian","6/1 gal","Santa 4017830000",{"$nulls":4},5,{"$f":"I512*F512","v":0}]
[null,"Oil, Salad, Canola, TFF","1/35#","Master Chef 100087878",{"$nulls":4},50,0]
[null,"Vegetable Shortening, clear liquid soybean oil","1/35# jug","RP 100087083",{"$nulls":4},55,0]
[null,"Vegetable Shortening, Crisco Vegetable Oil","4/1 gal","Crisco 100087401",{"$nulls":4},5,0]
[null,"Vinegar, Cider, (B) minimum 5% acetic","4/1 gal",{"$nulls":5},1,0]
[null,"Vinegar, white distilled","4/1 gal",{"$nulls":5},20,0]
[null,"Garlic and Herb Seasoning in plastic shaker container, Salt Free, no added MSG","3/21 OZ","Ms Dash J058-S6900",{"$nulls":4},2,0]
[null,"Caribbean Citrus Dry Seasoning mix, in plastic shaker container, Salt Free, no added MSG","3/21 OZ","Ms Dash J097-S6900",{"$nulls":4},2,0]
[null,"Southwest Chipotle Seasoning in plastic shaker container, Salt Free, no added MSG","3/21 OZ","Ms Dash J095-S6900",{"$nulls":4},2,0]
[null,"Original Blend Seasoning Mix,in plastic shaker container, Salt Free, no added MSG","3/21 OZ","Ms Dash J017-S6900",{"$nulls":4},2,0]
[null,"Lemon Pepper Seasoning in plastic shaker container, Salt Free, no added MSG","3/21 OZ","Ms Dash J060-s6900",{"$nulls":4},2,0]
[null,"Spicy Jalapeno Seasoning in plastic shaker container, Salt Free, no added MSG","3/21 OZ","Ms Dash J096-S6900",{"$nulls":4},2,0]
[null,"Signature Seasoning  14 spice blend in plastic shaker container, Salt Free, no added MSG","6/21 oz","McCormick  901210141",{"$nulls":4},2,0]
[null,"Basil, Ground, rigid container with re-closable lid","1/5 oz",{"$nulls":5},1,0]
[null,"Celery Salt, rigid container with re-closable lid","1/36 oz",{"$nulls":5},1,0]
[null,"Celery Seed, rigid container with re-closable lid","1/16 oz",{"$nulls":5},1,0]
[null,"Chili Powder, Light, Mild, rigid container with re-closable lid","1/16 oz",{"$nulls":5},25,0]
[null,"Cinnamon, ground, rigid container with re-closable lid","1/16 oz",{"$nulls":5},25,0]
[null,"Cinnamon Maple Sprinkle Powder","30 oz","Durkee 2004197",{"$nulls":4},5,0]
[null,"Cumin, Ground","1/16 oz",{"$nulls":5},1,0]
[null,"Cream of Tarter","1/28 oz",{"$nulls":5},1,0]
[null,"Garlic Powder","1/16 oz",{"$nulls":5},25,0]
[null,"Garlic Salt","1/40 oz",{"$nulls":5},5,0]
[null,"Ginger, Ground","1/16 oz",{"$nulls":5},1,0]
[null,"Italian Seasoning, no salt.  Contains marjoram, thyme, savory, rosemary, sage, oregano, and basil.  ","1/6.5 oz",{"$nulls":5},5,0]
[null,"Marjoram, Ground","1/16 oz",{"$nulls":5},1,0]
[null,"Mustard, Ground   ","1/16 oz",{"$nulls":5},1,0]
[null,"Nutmeg, Ground","1/16 oz",{"$nulls":5},1,0]
[null,"Onion Powder","1/20 oz",{"$nulls":5},25,0]
[null,"Onions, Dehydrated","1/15 #",{"$nulls":5},5,0]
[null,"Oregano, ground","1/12 oz",{"$nulls":5},1,0]
[null,"Paprika, Spanish","1/16 oz",{"$nulls":5},1,0]
[null,"Parsley Flakes ","1/10 oz",{"$nulls":5},1,0]
[null,"Pepper, black, ground fine","1/16 oz",{"$nulls":5},20,0]
[null,"Pepper, White, ground fine","1/16 oz",{"$nulls":5},5,0]
[null,"Pepper, Black, ground fine, Ind Pk","6/1000",{"$nulls":5},1,0]
[null,"Pepper, Red, crushed","1/12 oz",{"$nulls":5},2,0]
[null,"Pepper, Lemon","1/26 oz",{"$nulls":5},1,0]
[null,"Poultry Seasoning , no MSG","1/12 oz",{"$nulls":5},1,0]
[null,"Sage, rubbed","1/6 oz",{"$nulls":5},5,0]
[null,"Salt, Iodized","24/26 oz",{"$nulls":5},10,0]
[null,"Sesame Seeds","1/16 oz",{"$nulls":5},1,0]
[null,"Thyme, ground","1/16 oz",{"$nulls":5},1,0]
[null,"Tumeric, ground","1/16 oz",{"$nulls":5},1,0]
[null,"Spaghetti Seasoning Mix","6/14 oz","Lawrys 80545",{"$nulls":4},25,0]
[null,"Taco Seasoning Mix, Reduced Sodium, no MSG","6/6.6 oz","Foothills Farms V413-D9190",{"$nulls":4},150,0]
[null,"Chili Seasoning Mix","6/14 oz","Lawrys 80526",{"$nulls":4},25,0]
[null,"Fajita Seasoning Mix RS TFF","6/8.9 oz","Lawrys 900647640",{"$nulls":4},15,0]
[null,"Vanilla, Extract,  ","1 quart",{"$nulls":5},1,0]
[null,"Almond, Extract, imitation","1 quart","McCormick 13489",{"$nulls":4},1,0]
[null,"OTHER DRY STOCK ITEMS",{"$nulls":7},0]
[null,"Fruit Snack, Berries N Cherries","144/1.55 oz","Welch's 14492",{"$nulls":4},20,0]
[null,"Fruit Snack, Mixed Fruit","144/1.55 ","Welch's 14498",{"$nulls":4},30,0]
[null,"Fruit Snack, RS, Gluten Free","96/.9 oz","GM/Betty Crocker 11510",{"$nulls":4},35,{"$f":"I565*F565","v":0}]
[]
[{"$nulls":9},{"$f":"I567*F567","v":0}]
[null,"NON-FOOD ",{"$nulls":7},0]
[null,"DISPOSABLES",{"$nulls":7},0]
[null,"Bowl, Foam 12 oz Unlaminated  ","8/125 ct","Genpak 82100",{"$nulls":4},55,0]
[null,"Bowl, Foam 5 oz. Unlaminated  ","1000 ct","Genpak 80500",{"$nulls":4},60,0]
[null,"Bowl, Foam 8 oz. Shallow White   ","1000 ct","Dart 8B20",{"$nulls":4},10,0]
[null,"Bowl, Squat  Foam 4 oz.","20/50 ct","Dart 4J6",{"$nulls":4},40,0]
[null,"Bowl, Squat  Foam 6 oz.","20/50 ct","Dart 6SJ12",{"$nulls":4},25,0]
[null,"Bowl, Squat  Foam 8 oz.","20/50 ct","Dart 8SJ20",{"$nulls":4},2,0]
[null,"Bowl, Squat Cup, Foam 12 oz.","20/25 ct","Dart 12SJ20",{"$nulls":4},15,{"$f":"I576*F576","v":0}]
[null,"Bowl, container 22 oz. Black","1/500ct","ParPak 24020",{"$nulls":4},20,0]
[null,"Lid for Black Bowl Container, Dome fits 16 -24 oz. bowl","1/500 ct","Parpak 24500",{"$nulls":4},5,0]
[null,"Lid, for Squat 4 oz. squat, translucent (fits Dart 4J6)","10/100 ct","Dart 6JL",{"$nulls":4},2,0]
[null,"Lid, for Squat 6 oz. squat, translucent (fits Dart 6SJ12)","10/100 ct","Dart 12JL",{"$nulls":4},2,0]
[null,"Lid, for Squat 8 oz.and 12 oz. squat  Translucent (fits Dart 8SJ20 and 12SJ20) ","10/100","Dart 20JL",{"$nulls":4},2,0]
[null,"Cup, Drink Foam, 16 oz.","40/25 ct","Dart 16J16",{"$nulls":4},20,0]
[null,"Cup, Drink Foam, 6 oz.","40/25 ct","Dart 6J6",{"$nulls":4},25,0]
[null,"Plate, foam unlaminated, 6\"","8/125 ct","GenPak 80600",{"$nulls":4},5,0]
[null,"Plate, foam, unlaminated 9\"","4/125 ct","Gen Pak 80900",{"$nulls":4},5,0]
[null,"Tray, foam school 5 compartment white 10X8X1 3/16\"","500 ct","Genpak    YTH10500SG",{"$nulls":4},1100,0]
[null,"Plate, Oval Black Platter , 7X9 laminated","4/125 ct","Dart  9PRBQR",{"$nulls":4},5,0]
[null,"Plate, Oval White Platter , 7X9 laminated","4/125 ct","GenPAk LAM79",{"$nulls":4},5,0]
[null,"Tray, Hinged Clear Lid, One Compartment 8.25x8.25, shallow","1/250 CT","DartC89PST1",{"$nulls":4},25,0]
[null,"Tray, Hinged Clear Lid, One Compartment 8.25x8.25x3","1/250 CT","DartC90PST1",{"$nulls":4},75,0]
[null,"Tray, Hinged Clear Lid, 6X5.75X3","1/500 ct","Dart C57PST1",{"$nulls":4},25,0]
[null,"Tray box with fold over lid, foam, medium 3 compartment sesame9.25x9.25x3","200 ct","GPK20310-13",{"$nulls":4},10,0]
[null,"Tray box with fold over lid, foam, 1 compartment white 9.25x9.25x3\"","200 ct","GenPAk SN200",{"$nulls":4},5,0]
[null,"Cup, Portion Plastic 4 oz.  Clear","20/125 ct","Dart 400PC",{"$nulls":4},50,0]
[null,"Lid for Y7, 3.25, 4, 5.5 oz Plastic Portion Cup   clear","20/125 ct","Dart PL4N",{"$nulls":4},5,0]
[null,"Cup, Portion Plastic 2 oz.  Clear","20/125 ct","Dart 200PC",{"$nulls":4},50,0]
[null,"Lid, plastic,  for 2 oz. portion cup     clear","25/100 ct","Dart  PL200N",{"$nulls":4},40,0]
[null,"Cup, clear 7 oz","25/100 ct","Dart Y7",{"$nulls":4},25,0]
[null,"Cup, clear 10 oz","20/50 ct","Dart TP10D",{"$nulls":4},10,0]
[null,"Lid for clear 10 oz cup with straw slit","10/100 ct","Dart 610TS",{"$nulls":4},2,0]
[null,"Straw, milk, 5 3/4\" wrapped ","24/500ct","DW MSW24-500S",{"$nulls":4},1,0]
[null,"Sandwich Bag, Saddlepak 6","2000 ct","Foodhandler 21-6709",{"$nulls":4},25,0]
[null,"Food Storage Bag, Sandwich Zipseal ","500 ct","Foodhandler          20-FH40",{"$nulls":4},25,0]
[null,"Food Storage Bag, Quart Zipseal ","500 ct","Foodhandler          20-FH50",{"$nulls":4},10,0]
[null,"Food Storage Bag, Gallon Zipseal 10.5x11","250 ct","Food Handler 20FH60",{"$nulls":4},10,{"$f":"I605*F605","v":0}]
[null,"Clear, nacho tray, 2 compartment 6x5x1.5\"","4/125 ct","Dart C56NT2"," ",{"$nulls":3},15,0]
[null,"Cup, Paper, Portion 2 oz.  ","20/250 ct","GPKF200"," ",{"$nulls":3},10,0]
[null,"Fork, Heavy Duty White polypro, bulk","1000ct","Restaurant Pride F1001",{"$nulls":4},5,0]
[null,"Spoon, Heavy Duty white, polypro","1000 ct","Restaurant Pride F1003",{"$nulls":4},5,0]
[null,"Spoon, D & W, Medium Wt., Polypro, easy dispense","1000 ct","DW P1003",{"$nulls":4},250,0]
[null,"Fork, D & W, Medium Wt., Polypro, easy dispense","1000 ct","P1001",{"$nulls":4},250,0]
[null,"Meal Kit, Med Fork, Napkin (10 x 10)","1/1000 ct","P1001 ",{"$nulls":4},125,0]
[null,"Dish Insert 4 ounce, clear 3.5x3.5x1.25\"","2500 ct","ParPak 21822",{"$nulls":4},50,0]
[null,"Dish Insert 4 ounce, black 3.5x3.5x1.25\"","2500 ct","ParPak 21927",{"$nulls":4},150,0]
[null,"Food Tray, paper boat, 8 oz, red checker design, #50","4/250 ct","Southern Champ 0409",{"$nulls":4},25,0]
[null,"Food Tray, Paper boat, 6 oz. red checker design, #40","1/1000 ct","Southern Champ 0405",{"$nulls":4},75,0]
[null,"Food Tray, paper boat, 4 oz. red checker design, #25   ","4/250 ct","Southern Champ 0401",{"$nulls":4},150,0]
[null,"Food Tray, paper boat, 1# red checker design, #100","4/250","Southern Champ 0413",{"$nulls":4},50,0]
[null,"Food Tray, paper boat, 2.5# red checker design, #250","2/250","Southern Champ 0421",{"$nulls":4},25,0]
[null,"Bag, Paper White 8#  ","500 CT","Duro 13200215",{"$nulls":4},10,0]
[null,"Apron Embossed 28x46 a grade above 1 mil","40/25 ct","Food Handler 250-FH3L",{"$nulls":4},5,0]
[null,"Glove, poly medium disposable clear","10/100 ct","Restaurant Pride RDPG-100M",{"$nulls":4},2,0]
[null,"Glove, poly large disposable clear","10/100 ct","Restaurant Pride RDPG-100L",{"$nulls":4},2,0]
[null,"Glove, vinyl powderfree medium","10/100 ct ","Restaurant Pride 97545",{"$nulls":4},75,0]
[null,"Glove, vinyl powderfree large","10/100 ct","Restaurant Pride 78161",{"$nulls":4},65,0]
[null,"Glove, Latex Rollcuff, Medium FS, Powdered","10/100 ct","Restaurant Pride  69541",{"$nulls":4},2,0]
[null,"Napkin, Tallfold Disp 1 ply 13x6.5 ",{"v":10000,"d":"10,000"},"Cascades N071A",{"$nulls":4},125,0]
[null,"Bun Pan poly bags, clear, 21x6x35 for storage or proofing","250 ct","Fort BPL35",{"$nulls":4},75,0]
[null,"Bag, printed french fry 4.5x3.5\"","10/1000ct","Brown Paper 805",{"$nulls":4},5,0]
[null,"Deli paper, 12x10 3/4 \"","12/500 ct","Bagcraft 012012",{"$nulls":4},15,0]
[null,"Wrap, tissue, bakery 12x10.75","6/1000 ct","HW T-12",{"$nulls":4},3,0]
[null,"Towels, Paper 2 ply, WRPD, 11X8.8","30 ROLL","Cascades 1751/1751B",{"$nulls":4},10,0]
[null,"Wrap Foil, Standard roll,  18\"x500'","1 roll","RP 294FA",{"$nulls":4},40,0]
[null,"Wrap, Film 18\" x 2000, zipper cutter","1 roll","RP 182FA",{"$nulls":4},30,0]
[null,"Wrap, foil potato 9x10 3/4\" silver","6/500 ct","RP 632FA",{"$nulls":4},10,0]
[null,"Wax Paper, 12\" x 75\" Kitchen Charm","24 rolls",{"$nulls":5},2,0]
[null,"Liner, pan bakery, 16-3/8x24-3/8, Quilon","1000 ct","HandyWax            PL-25-1",{"$nulls":4},100,0]
[null,"Liner, Pan 1/2 size Steam Table","1/250 ct","Food Handler      22-STL23",{"$nulls":4},5,0]
[null,"Liner, Pan full size Steam Table,","1/250 ct","Food Handler      22-STL24",{"$nulls":4},20,0]
[null,"Alcohol Swabs, Sanitizing Probe Wipe, food service safe","10/200 ","Cooper Atkins 438377",{"$nulls":4},5,0]
[null,"Baking Cup, 4.5 \"2\" Bottom Fluted ","20/500 ct","HOF 610032",{"$nulls":4},1,0]
[null,"Liners, 60 gallon Hi D, 38x60, 14 mic, S386014","1/200 ct","RP 4820081184",{"$nulls":4},200,0]
[null,"Liners, 56 gallon 43 x 47 Heavy Weight, .80 ml","1/100 ct","IP WSL4347XHW",{"$nulls":4},150,0]
[{"$nulls":9},0]
[]
[]
[null,"Small Equipment",{"$nulls":7},0]
[null,"Spoon, Windsor Medium SS 18%   Onieda #381392 or equal","3 doz",{"$nulls":5},75,0]
[null,"Fork, Windsor Medium SS 18%  Onieda   or equal","2 doz",{"$nulls":5},70,0]
[null,"Thermometer, hanging, Refrig,/Freezer, economy w/ non toxic tube  (-40+80F)","each",{"$nulls":5},20,0]
[null,"Thermometer, digital, pocket -40 +300F, ","each",{"$nulls":5},20,0]
[null,"Thermometer, dial pocket (0-220F) easy read, 5 inch shaft","each",{"$nulls":5},15,0]
[null,"Thermometer for stockroom, 0-120F, hanging, non toxic tube","each",{"$nulls":5},2,0]
[null,"Thermometer, dishwasher digital , -4 - 400 degrees","each","Comark DT400",{"$nulls":4},5,0]
[null,"Measuring Spoons, 18/8, 6 piece, ","each","Vollrath 46588",{"$nulls":4},5,0]
[null,"Spoodles, Solid, 4 oz, black handle, ","each","Vollrath 61172",{"$nulls":4},15,{"$f":"I656*F656","v":0}]
[null,"Spoodles, Perforated, 4 oz, black handle","each","Vollrath 61170",{"$nulls":4},5,0]
[null,"Dishers, #8, 4 oz","each","Hamilton Beach D08/78-08",{"$nulls":4},5,0]
[null,"Tong, Utility Spring 9.5\", SS 47110","each",{"$nulls":5},10,0]
[null,"Tong, Clear Plastic 6\" 400607","each","Carlisle 397456",{"$nulls":4},5,0]
[null,"Brush, Pastry 3\" Nylon bristles, flat shape","each",{"$nulls":5},5,0]
[null,"Scraper/Spatula 16\" white","each",{"$nulls":5},5,0]
[null,"Scraper/Spatula 9.5\" white","each",{"$nulls":5},5,0]
[null,"Mitt, Oven Teflon 15\" tan to 200 degrees F","1 pair","NDT 15TEF",{"$nulls":4},10,0]
[null,"Holder pan, 8.5x11.5 terry safety wall, pair","1 pair","NDT 911BP",{"$nulls":4},75,0]
[null,"Towels, terry wiping towels 15x25 white cotton","12 ct","NDT 1525225",{"$nulls":4},30,0]
[null,"Towels,  13 x 24\" Quix Plus HD White/Red ","1/72 ct","Chicopee 10283841",{"$nulls":4},5,0]
[null,"Pan Sheet, Full Size, 18 x 26\", 18 gauge ","each","Vollrath 381404",{"$nulls":4},5,0]
[null,"Pan Sheet, Half Size 18 x 13\", 18 gauge","each","Vollrath 381405",{"$nulls":4},5,0]
[null,"Steam Table Pan, Full size 4 \" deep, 22 gauge","each","UPD 482398",{"$nulls":4},5,0]
[null,"Steam Table Pan, Full size 2.5 \" deep, 22 gauge","each","UPD 482397",{"$nulls":4},5,0]
[null,"Knives, Paring 3.25\" blade, Sani Safe","each","Dexter Russell 15303 S104PCP",{"$nulls":4},15,0]
[null,"Knives, Butcher, 8\" blade, Sani Safe","each","Dexter Russell 4133 S112-8",{"$nulls":4},1,0]
[null,"Knives, Slicer 8\" Scalloped, Sani Safe","each","Dexter Russell 13483 S158SC",{"$nulls":4},1,0]
[null,"Knives, Cooks, 8 \" Sani Safe ","each","Dexter Russell 12443 S145-8",{"$nulls":4},2,0]
[null,"Knives, Boning 6 \" flexible, Sani Safe","each","Dexter Russell 1543 S136F",{"$nulls":4},2,{"$f":"I676*F676","v":0}]
[null,"Pizza Cutter, 4\" Wheel Sani Safe","each","Dexter Russell 18023 P177A",{"$nulls":4},1,{"$f":"I677*F677","v":0}]
[null,"Turner, 4\" x 2\", Sani Safe","each","Dexter Russell 16463 S172",{"$nulls":4},1,0]
[null,"Turner, 6\" x 3\", Sani Safe","each","Dexter Russell 19683 S286-6CP",{"$nulls":4},1,0]
[]
[]
[null," "]
[null,"               Cleaning Supplies and Chemicals",{"$nulls":7},0]
[null,"Bleach, liquid -USDA, UPA, FDA approved ph balanced, 6% ","6/1 gal",{"$nulls":5},63,0]
[null,"Broom, red handled, household ","each","ZEP 32018",{"$nulls":4},2,0]
[null,"Broom, Angle 13\" ","each","ZEP 34088",{"$nulls":4},2,0]
[null,"Pan, Dust Lobby with Handle Black, ","each","RM 2531",{"$nulls":4},2,0]
[null,"Mop, 16 oz. Cotton stick, 4 ply ","each","ZEP 59002",{"$nulls":4},45,0]
[null,"Mop, 24 oz. Cotton stick, 4 ply ","each","ZEP 11025",{"$nulls":4},10,0]
[null,"Gloves, latex lined medium yellow 12.5\"","1 pair",{"$nulls":5},10,0]
[null,"Gloves, latex lined large yellow12.5\"","1 pair",{"$nulls":5},10,0]
[null,"Institutional Powdered Floor Cleaner and Detergent","36#","P&G Tide 02364",{"$nulls":4},2,0]
[null,"Dish Detergent, concentrate for pot and pan sink, Blue Dawn","8/38 oz","Proctor and Gamble 435714",{"$nulls":4},45,0]
[null,"Sponge, Stainless Steel, Large 36 gram","6/12 ct","S730/6"," ",{"$nulls":3},5,0]
[null,"Scour Pad, Heavy Duty S/Brite 6 x 9 ","1/20 count","3M 79529",{"$nulls":4},5,0]
[null,"Scour Pad, Soap, Steel Wool, Hotel Size ","12/10 ct","Brillo 431958",{"$nulls":4},5,0]
[null,"Stainless Steel Polish, aerosol ","6/14.5 oz",{"$nulls":5},2,0]
[null,"Cleaner for Stainless Steel, Aluminum and Chrome, Non - Abrasive, Non Caustic, Non Flammable, Biodegradable","6/16 oz","CresCor CC-16-6",{"$nulls":4},5,0]
[null,"Cleaner, degreaser Formula 409 Refill","6/64 oz","Clorox Co 00636",{"$nulls":4},20,0]
[null,"Cleaner, powdered, spic and span with bleach","45/2.2 oz","P & G 339479",{"$nulls":4},10,0]
[null,"Chlorine water testing strips, for dishmachines and sinks","1/100 ct",{"$nulls":5},15,0]
[null,"Detergent, Dishmachine High Temp Chlorine","1 /5 gal","Performa  706",{"$nulls":4},100,0]
[null,"Detergent, Dishmachine Solid","4/8 #","Intercon 0970/983",{"$nulls":4},35,0]
[null,"Rinse Aid, Dishmachine, All Temp Blue","4/1 gal","Performa 863",{"$nulls":4},25,0]
[null,"Rinse Aid, Dishmachine, All Temp Blue","1/5 gall","Performa 863",{"$nulls":4},25,0]
[null,"Solvent Delimer for dishmachines","4/1 gal","Performa 0410",{"$nulls":4},50,0]
[null,"Floor Cleaner, Surefoot Ez  ","4/30 ct","Intercon Chemical 0845",{"$nulls":4},5,0]
[null,"Sanitizer, No Rinse RTU Spray SA",null,"Intercon 236",{"$nulls":4},10,0]
[null,"Detergent for Laundry, Powder, Tide with Bleach Original","2/144 oz","P & G Tide 565768",{"$nulls":4},10,{"$f":"I709*F709","v":0}]
[null,"Cleaner/Degreaser Heavy Duty ","4/1 gal","Performa 694F",{"$nulls":4},12,0]
[null,"Cleaner Spic and Span w/b","45/2.2 OZ","P&G 339479",{"$nulls":4},8,0]
[null,"Cleaner Oven/Grill Aerosol Foaming ","6/18 oz","Intercon A-770",{"$nulls":4},5,0]
[null,"Cleaner Oven/Grill/Fryer Cleaner","4/1 gal","FAP 784",{"$nulls":4},1,0]
[null,"Oven Cleaner, Fume Free","6/24 oz","Reckitt Bencksr 74017",{"$nulls":4},5,0]
[null,"Deodorizer/Neutralizer Odors Away","4/1 gal"," Intercon 261",{"$nulls":4},15,0]
[null,"Cleaner, Glass Windex ready to use ","4/1 gal","SCJ 657992",{"$nulls":4},2,0]
[null,"Glass Cleaner, Non Ammonia, foaming"," ",{"$nulls":5},2,0]
[null,"Water Softener, Salt Pellets ","1/50#","CARG 404574",{"$nulls":4},5,0]
[]
[]
[{"$nulls":8},"Total:",{"$f":"SUM(J6:J718)","v":0}]